Cogmind - Beta 14 @@@ ROGUE MODE // 2024.10.26 @ 07:30:27 Player: zitsii Result: Destroyed by YI-UF0 with YI-UF0's Doublenader Performance ------------- Evolutions (0) 0 Regions Visited (2) 400 Robots Destroyed (20) 100 Value Destroyed (278) 278 Prototype IDs (2) 40 Alien Tech Used (0) 0 Bonus (0) 0 TOTAL SCORE: 818 Bonus ------- None Cogmind --------- Core Integrity 0/250 Matter 260/300 Energy 125/125 System Corruption 0% Temperature Cool (0) Movement Core (250) Ox4 Location -10/Mines Parts ------- > --- POWER (1) -------- Light Ion Engine > --- PROPULSION (2) --- (None) > --- UTILITY (2) ------ Medium Storage Unit Improved Terrain Scanner > --- WEAPON (2) ------- (None) > --- INVENTORY (10) --- Aluminum Leg Aluminum Leg Visual Processing Unit Improved Terrain Scanner Seismic Detector Light Armor Plating Peak State ------------ > --- POWER ------------ Light Ion Engine > --- PROPULSION ------- Aluminum Leg Aluminum Leg > --- UTILITY ---------- Medium Storage Unit Improved Terrain Scanner > --- WEAPON ----------- EM Pulse Gun Assault Rifle > --- INVENTORY -------- Light Ion Engine Aluminum Leg Aluminum Leg Visual Processing Unit Improved Terrain Scanner Seismic Detector Light Armor Plating [Rating: 10] Favorites ----------- Power Light Ion Engine Engine Light Ion Engine Propulsion Aluminum Leg Leg Aluminum Leg Utility Improved Terrain Scanner Device Improved Terrain Scanner Storage Medium Storage Unit Weapon Assault Rifle Energy Gun EM Pulse Gun Ballistic Gun Assault Rifle Launcher Grenade Launcher Build | -11 -10 -10 ------- Run | Yrd Mat Min Slots Evolved . | . . . Power . | . . . Propulsion . | . . . Utility . | . . . Weapon . | . . . Parts Attached 11 | 7 2 2 Power 2 | 1 . 1 Engine 2 | 1 . 1 Core . | . . . Reactor . | . . . Propulsion 2 | 2 . . Treads . | . . . Leg 2 | 2 . . Wheel . | . . . Hover . | . . . Flight . | . . . Utility 3 | 2 1 . Device 1 | 1 . . Storage 2 | 1 1 . Processor . | . . . Hackware . | . . . Protection . | . . . Artifact . | . . . Weapon 4 | 2 1 1 Energy Gun 1 | . 1 . Energy Cannon . | . . . Ballistic Gun 2 | 2 . . Ballistic Cannon . | . . . Launcher 1 | . . 1 Special Weapon . | . . . Impact Weapon . | . . . Slashing Weapon . | . . . Piercing Weapon . | . . . Special Melee Weapon . | . . . Unidentified Prototypes . | . . . Parts Lost 5 | . 1 4 Power . | . . . Propulsion 2 | . . 2 Utility . | . . . Weapon 3 | . 1 2 Highest Loss Streak 4 | . 1 4 To Critical Strikes . | . . . Average Slot Usage (%) 97 | . 98 97 Engine 14 | . 14 14 Leg 27 | . 28 26 Device 14 | . 14 14 Storage 14 | . 14 14 Energy Gun 4 | . 1 13 Ballistic Gun 20 | . 25 7 Launcher 1 | . . 6 Peak Build Rating 10 | 9 10 10 Average Rating 8 | 6 8 8 On Entrance 6 | . 9 10 Naked Turns . | . . . Heaviest Build 19 | 13 18 19 Greatest Support 20 | 20 20 20 Greatest Overweight (x) 4 | . . 4 Average Overweight (x) . | . . . Largest Inventory Capacity 10 | 8 10 10 Average Capacity 9 | 7 9 10 Most Carried 7 | 2 7 7 Average Carried 3 | . 3 6 Final Capacity 10 | 8 10 10 Final Carried 7 | 2 7 6 Class Distribution -------------------- 100% | Mutant Dominant Class ---------------- Mutant | -10/Materials Mutant | -10/Mines Resources | -11 -10 -10 ----------- Run | Yrd Mat Min Matter Collected 594 | 366 228 . Remotely . | . . . Salvage Created 481 | 168 313 . Parts 40 | 19 21 . Haulers Intercepted . | . . . Recyclers Shooed 1 | 1 . . Parts Field Recycled . | . . . Retrieved Matter . | . . . Parts Self-Destructed . | . . . Prevented . | . . . Kills | -11 -10 -10 ------- Run | Yrd Mat Min Combat Hostiles Destroyed 13 | . 12 1 Guns 12 | . 12 . AOE 1 | . . 1 Classes Destroyed 7 | 3 3 1 Worker 2 | 2 . . Tunneler 4 | 4 . . Recycler 1 | 1 . . Watcher 1 | . 1 . Swarmer 8 | . 8 . Grunt 4 | . 4 . Assembled 1 | . . 1 Best Kill Streak 4 | 3 4 1 Combat Bots Only 3 | . 3 1 Max Kills in Single Turn 1 | 1 1 1 Gunslinging . | . . . Exploded 1 | . . 1 Melee . | . . . Uniques/NPCs Destroyed . | . . . Combat | -11 -10 -10 -------- Run | Yrd Mat Min Hostile Shots Fired 98 | . 82 16 Missed 34 | . 30 4 Damage Taken 817 | . 446 371 Core 260 | . 131 129 Absorbed by Shields . | . . . Core Remaining (%) 100 | 100 . . Volleys Fired 62 | 16 42 4 Largest 2 | 2 2 2 Hottest 70 | 40 60 70 Shots Fired 113 | 32 75 6 Gun 109 | 32 75 2 Cannon . | . . . Launcher 4 | . . 4 Special . | . . . Kinetic 103 | 32 71 . Thermal . | . . . Explosive 4 | . . 4 Electromagnetic 6 | . 4 2 Robot Hit Streak 6 | 4 6 5 Robot Miss Streak 6 | 4 6 1 Penetration Max . | . . . Secondary Targets 2 | . 2 . Max Gunslinging Chain 1 | . 1 . Shots Hit Robots 58 | 15 38 5 Core Hits 29 | 8 17 4 Critical Kills . | . . . Critical Parts Destroyed . | . . . Critical Strikes . | . . . Melee Attacks . | . . . Impact . | . . . Slashing . | . . . Piercing . | . . . Sneak Attacks . | . . . Combat Hostiles . | . . . Follow-up Attacks . | . . . Damage Inflicted 763 | 168 495 100 Guns 686 | 168 495 23 Cannons . | . . . Explosions 77 | . . 77 Melee . | . . . Ramming . | . . . Kinetic 624 | 168 456 . Thermal . | . . . Explosive 77 | . . 77 Electromagnetic 62 | . 39 23 Impact . | . . . Slashing . | . . . Piercing . | . . . Highest Corruption . | . . . Average Corruption . | . . . Corruption Purged . | . . . Corruption Blocked . | . . . Overload Shots . | . . . Overflow Damage . | . . . Projectiles . | . . . Explosions . | . . . Melee . | . . . Knockbacks . | . . . Impact . | . . . Kinetic . | . . . Secondary . | . . . Self-Inflicted Damage 13 | . . 13 Shots 1 | . . 1 Rammed . | . . . Targets Rammed . | . . . Kicked . | . . . Crushed . | . . . Highest Temperature 30 | . 30 18 Average Temperature 14 | . 18 9 Received Heat Transfer 84 | . 84 . Siege Activations . | . . . Robots Corrupted . | . . . Combat Hostiles . | . . . Parts Fried . | . . . Impact Corruptions . | . . . Robots Melted . | . . . Combat Hostiles . | . . . Parts Melted . | . . . Heat Transferred . | . . . Parts Sabotaged . | . . . Parts Stolen . | . . . Parts Stripped . | . . . Power Chain Reactions . | . . . Alert | -11 -10 -10 ------- Run | Yrd Mat Min Peak Influence 287 | 35 287 75 Initial 71 | . 22 71 Average 85 | 13 123 70 Maximum Alert Level 1 | . 1 . Low Security (%) 91 | 100 84 100 Level 1 8 | . 15 . Level 2 . | . . . Level 3 . | . . . Level 4 . | . . . Level 5 . | . . . High Security . | . . . Max Security . | . . . Squads Dispatched 2 | . 2 . Investigation 2 | . 2 . Extermination . | . . . Reinforcement . | . . . Assault . | . . . Garrison . | . . . Intercept . | . . . Searches Triggered . | . . . Construction Impeded . | . . . Haulers Reinforced . | . . . Active Scanning Responses . | . . . Cargo Convoy Interrupts . | . . . Stealth | -11 -10 -10 --------- Run | Yrd Mat Min Distress Signals 2 | . 1 1 Communications Jammed . | . . . Distress Signals . | . . . Times Spotted 22 | . 20 2 Peak Tracking Total 6 | . 6 2 Tactical Retreats . | . . . Traps | -11 -10 -10 ------- Run | Yrd Mat Min Traps Triggered 2 | . 2 . Indirectly . | . . . Trap Hack Attempts . | . . . Triggered . | . . . Disarmed . | . . . Reprogrammed . | . . . Reused . | . . . Traps Extracted . | . . . Installed . | . . . Triggered . | . . . Machines | -11 -10 -10 ---------- Run | Yrd Mat Min Machines Disabled 1 | . 1 . Max in Single Turn 1 | . 1 . Machines Repaired . | . . . Machines Dismantled . | . . . Machines Sabotaged . | . . . Overloaded Fab Kills . | . . . Hacking | -11 -10 -10 --------- Run | Yrd Mat Min Machines Accessed 2 | . 2 . Terminals 1 | . 1 . Fabricators . | . . . Repair Stations . | . . . Recycling Units 1 | . 1 . Scanalyzers . | . . . Garrison Access . | . . . Total Hacks 4 | . 4 . Successful 3 | . 3 . Failed 1 | . 1 . Catastrophic . | . . . Database Lockouts . | . . . Manual . | . . . Terminals 2 | . 2 . Fabricators . | . . . Repair Stations . | . . . Recycling Units 2 | . 2 . Scanalyzers . | . . . Garrison Access . | . . . Terminal Hacks 1 | . 1 . Prototype ID Bank 1 | . 1 . Fabricator Hacks . | . . . Repair Station Hacks . | . . . Recycling Unit Hacks 2 | . 2 . Report Inventory 1 | . 1 . Retrieve Components 1 | . 1 . Scanalyzer . | . . . Garrison Access Hacks . | . . . Unauthorized Hacks . | . . . Terminals . | . . . Fabricators . | . . . Repair Stations . | . . . Recycling Units . | . . . Scanalyzers . | . . . Garrison Access . | . . . Data Cores Recovered . | . . . Used . | . . . Hacking Detections 1 | . 1 . Full Trace Events . | . . . Feedback Events . | . . . Feedback Blocked . | . . . Robot Schematics Acquired . | . . . Robots Built . | . . . Authchips . | . . . Time . | . . . Total Robot Build Rating . | . . . Part Schematics Acquired . | . . . Parts Built . | . . . Authchips . | . . . Time . | . . . Total Part Build Rating . | . . . Parts Repaired . | . . . Time . | . . . Parts Recycled . | . . . Recycled Matter . | . . . Retrieved Matter . | . . . Retrieved Components 9 | . 9 . Parts Scanalyzed . | . . . Part Schematics Acquired . | . . . Parts Damaged . | . . . Bothacking | -11 -10 -10 ------------ Run | Yrd Mat Min Used RIF Installer . | . . . Robots Hacked . | . . . Non-combat . | . . . Combat . | . . . Robot Hacks Applied . | . . . Relay Couplers Released . | . . . Fabnet Peak Effective % . | . . . Robots Rewired . | . . . Allies Hacked . | . . . Hacks Repelled . | . . . Allies | -11 -10 -10 -------- Run | Yrd Mat Min Total Allies . | . . . Largest Group . | . . . Highest-Rated Group . | . . . Highest-Rated Ally . | . . . Total Orders . | . . . Ally Attacks . | . . . Total Damage . | . . . Kills . | . . . Allies Corrupted . | . . . Allies Melted . | . . . Intel | -11 -10 -10 ------- Run | Yrd Mat Min Robot Analysis Total . | . . . Derelict Logs Recovered 1 | . . 1 Drone Launches . | . . . Drone Recoveries . | . . . Exploration | -11 -10 -10 ------------- Run | Yrd Mat Min Turns Passed 1050 | 271 583 196 Spaces Moved 709 | 177 381 151 Core 7 | 6 . 1 Treads . | . . . Legs 702 | 171 381 150 Wheels . | . . . Hover . | . . . Flight . | . . . Fastest Speed 50 | 50 120 120 Average Speed 119 | 117 120 120 Slowest Speed 250 | 120 120 250 Overloaded Moves . | . . . Propulsion Burnouts . | . . . Robots Hopped . | . . . Cave-ins Triggered . | . . . Exploration Rate (%) 34 | 7 57 38 Regions Visited 2 Branch Regions 1 Pre-discovered Areas 1 | . . 1 Known Exits Taken . | . . . Unknown Exits Taken 2 | 1 1 . Scrap Searched . | . . . Spaces Dug . | . . . Terrain Destroyed 11 | . . 11 Melee . | . . . Projectile . | . . . AOE 11 | . . 11 Terrain Rammed . | . . . Walls Destroyed . | . . . Machines Disabled . | . . . Actions | -11 -10 -10 --------- Run | Yrd Mat Min Total 800 | 208 432 160 Wait . | . . . Move 707 | 176 380 151 Hop . | . . . Pick Up 17 | 9 7 1 Fast Attach . | . . . Attach 8 | 7 1 . Detach . | . . . Swap 3 | . 1 2 Drop 3 | . 1 2 Fire 62 | 16 42 4 Melee . | . . . Ram . | . . . Kick . | . . . Crush . | . . . Escape Stasis . | . . . Rewire . | . . . Trap . | . . . Miscellaneous . | . . . Route ------- -11/Scrapyard -10/Materials (discovered 3 exits: [*Mat] / [*Min x2]) -10/Mines (discovered 1 exit: [Sub]) History --------- Turn | Location | Event 37 | -11/Scrapyard | Discovered new exit (range 16) 272 | -11/Scrapyard | Entered Materials 311 | -10/Materials | Build established: Mutant 320 | -10/Materials | Discovered new exit (range 12) 497 | -10/Materials | Discovered new exit (range 8) 791 | -10/Materials | Discovered new exit (range 6) 834 | -10/Materials | Core integrity fell below 50% 855 | -10/Materials | Entered Mines 859 | -10/Mines | Assembled infested the area 920 | -10/Mines | Learned location of Storage (-7) 937 | -10/Mines | Discovered new exit (range 9) 946 | -10/Mines | YI-UF0 nonchalantly dropped a Grenade Launcher on the ground 1050 | -10/Mines | Core integrity fell below 20% 1051 | -10/Mines | Destroyed by YI-UF0 with YI-UF0's Doublenader Last Messages --------------- World map updated: -7/Storage. 00924_ T-07 Excavator is excavating. 00937_ EXIT=FOUND 00946_ YI-UF0 nonchalantly drops a Grenade Launcher on the ground. 00950_ Acquired Grenade Launcher. 00954_ Dropped Assault Rifle. 00958_ T-07 Excavator is excavating. 01026_ YI-UF0 mumbles something. 01030_ The unstable cave ceiling collapses. 01034_ YI-UF0: "KABOOM!" 01035_ YI-UF0: "Whaaaaaaaa!" 01036_ YI-UF0 mumbles something. 01038_ The unstable cave ceiling collapses. 01043_ as-48477 destroyed. 01044_ EM Pulse Gun destroyed. 01049_ Aluminum Leg destroyed. 01049_ Grenade Launcher destroyed. 01049_ Aluminum Leg destroyed. 01051_ The unstable cave ceiling collapses. Map ----- +----------------------------------------------------+ | ?????????????????# ## #???????????????????# ##? | | ?????????######### ## ###????????????#?????? ## | | ?????????# ## ####?????????????????? ? | | ?????????# ########## ??????????????????? ? | | ??######## ######### ???????????#??????? #? | | ????# #??????????????????? #? | | ????# #############?# #?#??????????#?????? #? | | ????# ##?????#??#??## ##???#?????????????? #? | | ??### ##?????###### ###???????#???????? #? | | ### ##????# ##??????????????? ## | | ## #?#??# =% ######?#????????# # | | # """ ####?# #?????????## # | | """ #?### #### #????????## #? | | """ ### ### [ #??# #???###### #?? | | """ ##?# ## #??# ##### #??? | | ## #### ## #??# ##### ##?? | | ### ########### #???# ##? | | ??## ##?????# #???# #? | | ???## ####### ### #####?## #???## ## | | ????####?????## ##?# ##### #?#??# # | | ??????????????## #??? #????# # | | ???????????#??# ##??## g #???## ## | | ????????????#?####???# ##??###??## ##? | | ?????????????????????# # #?#????## ##? | | ????????????#?